[Event "Early-Titled-Tuesday-Blitz-December-26-2023"]
[Site "Chess.com"]
[Date "2023.12.26"]
[Round "6"]
[White "MetiForce"]
[Black "Alexchess1984"]
[Result "0-1"]
[WhiteElo "2869"]
[BlackElo "2729"]
[TimeControl "180+1"]
[EndTime "9:06:11 PST"]
[Termination "Alexchess1984 won by resignation"]

1. e4 {[%clk 0:03:00.9]} 1... c5 {[%clk 0:02:58.9]} 2. Nf3 {[%clk 0:03:00.9]}
2... Nc6 {[%clk 0:02:59.3]} 3. b3 {[%clk 0:03:01.5]} 3... e5 {[%clk 0:02:56]} 4.
Bb2 {[%clk 0:03:00.8]} 4... d6 {[%clk 0:02:56.4]} 5. h3 {[%clk 0:02:58.9]} 5...
Nf6 {[%clk 0:02:56.3]} 6. Nc3 {[%clk 0:02:59.5]} 6... Be7 {[%clk 0:02:56.2]} 7.
Bc4 {[%clk 0:02:59.2]} 7... O-O {[%clk 0:02:56.7]} 8. O-O {[%clk 0:02:59.5]}
8... Be6 {[%clk 0:02:57.1]} 9. d3 {[%clk 0:02:59.5]} 9... Rb8 {[%clk 0:02:56.1]}
10. Ng5 {[%clk 0:02:59]} 10... Bxc4 {[%clk 0:02:51.4]} 11. bxc4 {[%clk
0:02:59.9]} 11... a6 {[%clk 0:02:49.4]} 12. a4 {[%clk 0:02:57.4]} 12... Nd4
{[%clk 0:02:49]} 13. Nf3 {[%clk 0:02:57.4]} 13... Qd7 {[%clk 0:02:45.1]} 14. Nb1
{[%clk 0:02:49.7]} 14... b5 {[%clk 0:02:41.6]} 15. Bxd4 {[%clk 0:02:47.9]} 15...
cxd4 {[%clk 0:02:38.5]} 16. axb5 {[%clk 0:02:48.3]} 16... axb5 {[%clk 0:02:39]}
17. Nbd2 {[%clk 0:02:48.9]} 17... Rfc8 {[%clk 0:02:35.4]} 18. Ra6 {[%clk
0:02:47.2]} 18... bxc4 {[%clk 0:02:34.2]} 19. Nxc4 {[%clk 0:02:48.1]} 19... Nxe4
{[%clk 0:02:32.3]} 20. Nb6 {[%clk 0:02:37]} 20... Rxb6 {[%clk 0:02:22.2]} 21.
Rxb6 {[%clk 0:02:37.9]} 21... Nc3 {[%clk 0:02:22]} 22. Qa1 {[%clk 0:02:36.1]}
22... Bd8 {[%clk 0:02:18.2]} 23. Rb2 {[%clk 0:02:30.4]} 23... Qc6 {[%clk
0:02:15.4]} 24. Qa7 {[%clk 0:02:25.3]} 24... h6 {[%clk 0:01:36.1]} 25. Qb7
{[%clk 0:02:15.2]} 25... Qxb7 {[%clk 0:01:33]} 26. Rxb7 {[%clk 0:02:16.1]} 26...
Ne2+ {[%clk 0:01:29.1]} 27. Kh1 {[%clk 0:02:15.7]} 27... Bf6 {[%clk 0:01:27.2]}
28. Nd2 {[%clk 0:01:38.2]} 28... Rxc2 {[%clk 0:01:24.4]} 29. Nc4 {[%clk
0:01:27]} 29... e4 {[%clk 0:01:13.8]} 30. Nxd6 {[%clk 0:00:45.8]} 30... exd3
{[%clk 0:01:12.4]} 31. Ne4 {[%clk 0:00:38.6]} 31... Nc3 {[%clk 0:01:08.6]} 32.
Nxf6+ {[%clk 0:00:13.4]} 32... gxf6 {[%clk 0:01:09.5]} 33. Ra7 {[%clk
0:00:13.8]} 33... d2 {[%clk 0:01:06.2]} 34. Raa1 {[%clk 0:00:13]} 34... f5
{[%clk 0:01:02.4]} 35. g3 {[%clk 0:00:11.3]} 35... Kg7 {[%clk 0:00:56.7]} 36.
Kg2 {[%clk 0:00:11.6]} 36... Kf6 {[%clk 0:00:57.4]} 37. Kf3 {[%clk 0:00:12.3]}
37... Ke5 {[%clk 0:00:57.8]} 38. Ra5+ {[%clk 0:00:12.5]} 38... Ke6 {[%clk
0:00:56.4]} 39. Raa1 {[%clk 0:00:12.7]} 39... Kd5 {[%clk 0:00:56.6]} 40. Kf4
{[%clk 0:00:06.5]} 40... d1=Q {[%clk 0:00:52.1]} 41. Raxd1 {[%clk 0:00:04.3]}
41... Nxd1 {[%clk 0:00:53]} 42. Kf3 {[%clk 0:00:04.1]} 42... Rxf2+ {[%clk
0:00:52.6]} 43. Rxf2 {[%clk 0:00:04.2]} 43... Nxf2 {[%clk 0:00:53.5]} 44. Kxf2
{[%clk 0:00:05.1]} 0-1

[Event "Early-Titled-Tuesday-Blitz-December-26-2023"]
[Site "Chess.com"]
[Date "2023.12.26"]
[Round "6"]
[White "giomar27"]
[Black "PabloZarnicki"]
[Result "0-1"]
[WhiteElo "2392"]
[BlackElo "2643"]
[TimeControl "180+1"]
[EndTime "9:06:11 PST"]
[Termination "PabloZarnicki won by resignation"]

1. e4 {[%clk 0:03:00.9]} 1... d6 {[%clk 0:02:58.4]} 2. d4 {[%clk 0:03:00]} 2...
Nf6 {[%clk 0:02:58.6]} 3. Nc3 {[%clk 0:02:59.8]} 3... c6 {[%clk 0:02:58.9]} 4.
Bd3 {[%clk 0:02:57.8]} 4... Nbd7 {[%clk 0:02:55.8]} 5. a4 {[%clk 0:02:50.8]}
5... g6 {[%clk 0:02:55.4]} 6. Nge2 {[%clk 0:02:47.9]} 6... e5 {[%clk 0:02:54.5]}
7. O-O {[%clk 0:02:47]} 7... Bg7 {[%clk 0:02:52.6]} 8. h3 {[%clk 0:02:43.9]}
8... O-O {[%clk 0:02:46.4]} 9. Be3 {[%clk 0:02:43.6]} 9... b6 {[%clk 0:02:39.1]}
10. Qd2 {[%clk 0:02:40.2]} 10... Re8 {[%clk 0:02:36.6]} 11. f4 {[%clk
0:02:39.6]} 11... exd4 {[%clk 0:02:35.8]} 12. Bxd4 {[%clk 0:02:38.9]} 12... Bb7
{[%clk 0:02:33.9]} 13. Rae1 {[%clk 0:02:38.1]} 13... c5 {[%clk 0:02:33.1]} 14.
Bf2 {[%clk 0:02:31.6]} 14... Nxe4 {[%clk 0:02:32.2]} 15. Nxe4 {[%clk 0:02:31.4]}
15... Bxe4 {[%clk 0:02:33]} 16. Bxe4 {[%clk 0:02:30.9]} 16... Rxe4 {[%clk
0:02:33.7]} 17. Qxd6 {[%clk 0:02:29.5]} 17... Nf6 {[%clk 0:02:31.6]} 18. Qxd8+
{[%clk 0:02:19]} 18... Rxd8 {[%clk 0:02:32.5]} 19. Nc3 {[%clk 0:02:16.1]} 19...
Rb4 {[%clk 0:02:30.1]} 20. Bh4 {[%clk 0:01:58.2]} 20... Rd2 {[%clk 0:02:03.5]}
21. Rd1 {[%clk 0:01:50.8]} 21... Rbd4 {[%clk 0:01:40.6]} 22. Rxd2 {[%clk
0:00:47.4]} 22... Rxd2 {[%clk 0:01:41.5]} 23. Rf2 {[%clk 0:00:47.2]} 23... Rd4
{[%clk 0:01:27.6]} 24. Kf1 {[%clk 0:00:27.5]} 24... Nh5 {[%clk 0:01:19]} 25. g3
{[%clk 0:00:06.6]} 25... Rb4 {[%clk 0:01:17.9]} 26. Re2 {[%clk 0:00:05.4]} 26...
Bxc3 {[%clk 0:01:13.9]} 27. Re8+ {[%clk 0:00:04.1]} 27... Kg7 {[%clk 0:01:13.6]}
28. bxc3 {[%clk 0:00:04.6]} 28... Rxa4 {[%clk 0:01:13.9]} 29. Bg5 {[%clk
0:00:02.9]} 29... h6 {[%clk 0:01:12.7]} 30. Bh4 {[%clk 0:00:03]} 30... Rc4
{[%clk 0:01:12.6]} 31. Ke2 {[%clk 0:00:03.1]} 31... Rxc3 {[%clk 0:01:12.4]} 32.
Kd2 {[%clk 0:00:03.7]} 32... Rf3 {[%clk 0:01:09.7]} 33. Be7 {[%clk 0:00:04.1]}
33... Nxg3 {[%clk 0:01:06.6]} 34. Bd6 {[%clk 0:00:02.8]} 34... g5 {[%clk
0:00:45.9]} 35. Be5+ {[%clk 0:00:01.8]} 35... f6 {[%clk 0:00:46.2]} 36. Re7+
{[%clk 0:00:02.3]} 36... Kg6 {[%clk 0:00:46.2]} 37. f5+ {[%clk 0:00:01.6]} 37...
Nxf5 {[%clk 0:00:43.4]} 38. Bb8 {[%clk 0:00:02]} 0-1

[Event "Early-Titled-Tuesday-Blitz-December-26-2023"]
[Site "Chess.com"]
[Date "2023.12.26"]
[Round "6"]
[White "CFalcons8"]
[Black "Pakarma"]
[Result "1-0"]
[WhiteElo "2236"]
[BlackElo "2443"]
[TimeControl "180+1"]
[EndTime "9:06:11 PST"]
[Termination "CFalcons8 won on time"]

1. e4 {[%clk 0:03:00.9]} 1... c5 {[%clk 0:02:51]} 2. Nf3 {[%clk 0:03:00]} 2...
Nc6 {[%clk 0:02:50]} 3. d4 {[%clk 0:03:00.2]} 3... cxd4 {[%clk 0:02:50.5]} 4.
Nxd4 {[%clk 0:03:01]} 4... e5 {[%clk 0:02:50.8]} 5. Nb5 {[%clk 0:03:00.8]} 5...
d6 {[%clk 0:02:51.3]} 6. N1c3 {[%clk 0:03:00.2]} 6... a6 {[%clk 0:02:51.5]} 7.
Na3 {[%clk 0:03:00.1]} 7... Be7 {[%clk 0:02:49.4]} 8. Nd5 {[%clk 0:03:00.1]}
8... Nf6 {[%clk 0:02:49.4]} 9. f3 {[%clk 0:02:53]} 9... Nxd5 {[%clk 0:02:42.2]}
10. exd5 {[%clk 0:02:53.9]} 10... Nd4 {[%clk 0:02:39.7]} 11. c3 {[%clk 0:02:53]}
11... Nf5 {[%clk 0:02:39.6]} 12. Qa4+ {[%clk 0:02:40.3]} 12... Bd7 {[%clk
0:02:35.5]} 13. Qe4 {[%clk 0:02:38.1]} 13... O-O {[%clk 0:02:09.2]} 14. Bd3
{[%clk 0:02:31.5]} 14... g6 {[%clk 0:02:05.9]} 15. O-O {[%clk 0:02:08.3]} 15...
Ng7 {[%clk 0:01:50.4]} 16. Qe2 {[%clk 0:01:55.6]} 16... f5 {[%clk 0:01:47.1]}
17. c4 {[%clk 0:01:52.3]} 17... Rc8 {[%clk 0:01:28.3]} 18. Kh1 {[%clk
0:01:49.3]} 18... Bg5 {[%clk 0:01:28]} 19. b4 {[%clk 0:01:46.8]} 19... Bxc1
{[%clk 0:01:11.9]} 20. Rfxc1 {[%clk 0:01:47.7]} 20... Nh5 {[%clk 0:01:09]} 21.
g3 {[%clk 0:01:35.6]} 21... Qg5 {[%clk 0:00:58.1]} 22. c5 {[%clk 0:01:29.9]}
22... Rce8 {[%clk 0:00:43.7]} 23. c6 {[%clk 0:01:20.1]} 23... Bc8 {[%clk
0:00:41.9]} 24. Nc4 {[%clk 0:01:04.8]} 24... e4 {[%clk 0:00:39.3]} 25. fxe4
{[%clk 0:01:00.2]} 25... fxe4 {[%clk 0:00:39.2]} 26. Bxe4 {[%clk 0:01:01.1]}
26... Bg4 {[%clk 0:00:33]} 27. Qd3 {[%clk 0:00:49]} 27... bxc6 {[%clk 0:00:16]}
28. Nxd6 {[%clk 0:00:46.6]} 28... Rd8 {[%clk 0:00:09.8]} 29. dxc6 {[%clk
0:00:43.7]} 29... Be6 {[%clk 0:00:04.3]} 30. c7 {[%clk 0:00:41.2]} 30... Qe5
{[%clk 0:00:01.9]} 31. cxd8=Q {[%clk 0:00:38.3]} 31... Rxd8 {[%clk 0:00:01.1]}
32. Nc4 {[%clk 0:00:28]} 1-0

[Event "Early-Titled-Tuesday-Blitz-December-26-2023"]
[Site "Chess.com"]
[Date "2023.12.26"]
[Round "6"]
[White "Angry_Twin"]
[Black "bazar-wokzal"]
[Result "1-0"]
[WhiteElo "2944"]
[BlackElo "2648"]
[TimeControl "180+1"]
[EndTime "9:06:12 PST"]
[Termination "Angry_Twin won by resignation"]

1. e4 {[%clk 0:03:00.9]} 1... Nc6 {[%clk 0:02:58.9]} 2. d4 {[%clk 0:02:59.5]}
2... d5 {[%clk 0:02:58.8]} 3. e5 {[%clk 0:02:58.3]} 3... h5 {[%clk 0:02:58.4]}
4. Nf3 {[%clk 0:02:56.7]} 4... Bg4 {[%clk 0:02:58]} 5. c3 {[%clk 0:02:56.4]}
5... Qd7 {[%clk 0:02:57.4]} 6. Nbd2 {[%clk 0:02:53.4]} 6... f6 {[%clk
0:02:54.8]} 7. h3 {[%clk 0:02:51.9]} 7... Bxf3 {[%clk 0:02:54.5]} 8. Nxf3 {[%clk
0:02:52.8]} 8... fxe5 {[%clk 0:02:54.7]} 9. dxe5 {[%clk 0:02:53.3]} 9... e6
{[%clk 0:02:52.9]} 10. Bb5 {[%clk 0:02:53.4]} 10... a6 {[%clk 0:02:51.8]} 11.
Ba4 {[%clk 0:02:53.2]} 11... Bc5 {[%clk 0:02:43.9]} 12. Bg5 {[%clk 0:02:37.6]}
12... Nge7 {[%clk 0:02:42.8]} 13. Nd4 {[%clk 0:02:34.8]} 13... b5 {[%clk
0:02:40.5]} 14. Bc2 {[%clk 0:02:25.4]} 14... Nxe5 {[%clk 0:02:27.8]} 15. O-O
{[%clk 0:02:25.3]} 15... Bxd4 {[%clk 0:02:21.1]} 16. Qxd4 {[%clk 0:02:24.8]}
16... N7c6 {[%clk 0:02:17.8]} 17. Qh4 {[%clk 0:02:24.8]} 17... Qf7 {[%clk
0:02:11.1]} 18. f4 {[%clk 0:02:15.4]} 18... Nc4 {[%clk 0:02:04.3]} 19. f5 {[%clk
0:02:12.6]} 19... e5 {[%clk 0:02:02.2]} 20. b3 {[%clk 0:02:06.2]} 20... Nd6
{[%clk 0:02:01.6]} 21. Rae1 {[%clk 0:02:03.8]} 21... Kd7 {[%clk 0:01:53.2]} 22.
Be3 {[%clk 0:01:52.3]} 22... Rae8 {[%clk 0:01:42.4]} 23. Qg3 {[%clk 0:01:50.2]}
23... d4 {[%clk 0:01:28.6]} 24. Bg5 {[%clk 0:01:46.4]} 24... e4 {[%clk
0:01:18.1]} 25. cxd4 {[%clk 0:01:22.6]} 25... Nxd4 {[%clk 0:01:16.4]} 26. Bb1
{[%clk 0:01:23.1]} 26... N4xf5 {[%clk 0:01:06]} 27. Qf2 {[%clk 0:01:22.6]} 27...
Qe6 {[%clk 0:00:59.6]} 28. Qc5 {[%clk 0:01:16.4]} 28... Ng3 {[%clk 0:00:49.9]}
29. Rf2 {[%clk 0:01:09.1]} 29... Rhf8 {[%clk 0:00:48.3]} 30. Bf4 {[%clk
0:01:04.1]} 30... h4 {[%clk 0:00:42.7]} 31. Rc1 {[%clk 0:00:58.4]} 31... Rc8
{[%clk 0:00:36.5]} 32. Qc6+ {[%clk 0:00:57.9]} 32... Ke7 {[%clk 0:00:27.9]} 33.
Bg5+ {[%clk 0:00:57.6]} 33... Rf6 {[%clk 0:00:28.3]} 34. Bxh4 {[%clk 0:00:56.8]}
34... Ngf5 {[%clk 0:00:23.7]} 35. Bxf6+ {[%clk 0:00:57]} 35... gxf6 {[%clk
0:00:21.7]} 36. Re1 {[%clk 0:00:52.7]} 36... e3 {[%clk 0:00:18.6]} 37. Rf4
{[%clk 0:00:51.5]} 37... Qe5 {[%clk 0:00:15.3]} 38. Qf3 {[%clk 0:00:51.3]} 38...
Ke6 {[%clk 0:00:06.7]} 39. Bxf5+ {[%clk 0:00:50.3]} 39... Nxf5 {[%clk 0:00:07]}
40. Rxf5 {[%clk 0:00:50.9]} 40... Qxf5 {[%clk 0:00:07.1]} 41. Rxe3+ {[%clk
0:00:51.6]} 41... Qe5 {[%clk 0:00:07.7]} 42. Rxe5+ {[%clk 0:00:51.9]} 42... fxe5
{[%clk 0:00:08.6]} 43. Qg4+ {[%clk 0:00:52.5]} 1-0

[Event "Early-Titled-Tuesday-Blitz-December-26-2023"]
[Site "Chess.com"]
[Date "2023.12.26"]
[Round "6"]
[White "YurasovMat-2012"]
[Black "ShadyH9"]
[Result "1-0"]
[WhiteElo "2529"]
[BlackElo "2336"]
[TimeControl "180+1"]
[EndTime "9:06:13 PST"]
[Termination "YurasovMat-2012 won on time"]

1. e4 {[%clk 0:03:00.9]} 1... c5 {[%clk 0:02:59.8]} 2. Nf3 {[%clk 0:02:52.7]}
2... Nc6 {[%clk 0:02:57.7]} 3. Bb5 {[%clk 0:02:50.6]} 3... g6 {[%clk 0:02:54.8]}
4. O-O {[%clk 0:02:50]} 4... Bg7 {[%clk 0:02:54.8]} 5. Re1 {[%clk 0:02:50.4]}
5... Nf6 {[%clk 0:02:54.6]} 6. e5 {[%clk 0:02:50.3]} 6... Nd5 {[%clk 0:02:54.4]}
7. Nc3 {[%clk 0:02:50.4]} 7... Nc7 {[%clk 0:02:25.1]} 8. Bxc6 {[%clk 0:02:49.7]}
8... dxc6 {[%clk 0:02:24.3]} 9. h3 {[%clk 0:02:49.3]} 9... O-O {[%clk
0:02:13.9]} 10. d3 {[%clk 0:02:47.3]} 10... Be6 {[%clk 0:02:06.9]} 11. Be3
{[%clk 0:02:46.5]} 11... b6 {[%clk 0:02:06.4]} 12. Qd2 {[%clk 0:02:46.2]} 12...
Bd5 {[%clk 0:02:06.5]} 13. Qe2 {[%clk 0:02:35.2]} 13... Ne6 {[%clk 0:02:04.9]}
14. Rad1 {[%clk 0:02:34.1]} 14... Bxf3 {[%clk 0:01:40.6]} 15. Qxf3 {[%clk
0:02:33.4]} 15... Bxe5 {[%clk 0:01:39.8]} 16. Qxc6 {[%clk 0:02:32.7]} 16... Qd6
{[%clk 0:01:29.8]} 17. Qf3 {[%clk 0:02:30.6]} 17... Nd4 {[%clk 0:01:23.8]} 18.
Bxd4 {[%clk 0:02:30.3]} 18... Bxd4 {[%clk 0:01:23.7]} 19. Ne4 {[%clk 0:02:29.9]}
19... Qc7 {[%clk 0:01:12]} 20. c3 {[%clk 0:02:29.3]} 20... Bg7 {[%clk
0:01:11.4]} 21. Ng5 {[%clk 0:02:28.6]} 21... Rad8 {[%clk 0:01:08.7]} 22. Qe4
{[%clk 0:02:25.8]} 22... Rd7 {[%clk 0:01:03.1]} 23. h4 {[%clk 0:02:21.3]} 23...
Bf6 {[%clk 0:00:58.9]} 24. Nf3 {[%clk 0:02:19.8]} 24... Rfd8 {[%clk 0:00:58.5]}
25. h5 {[%clk 0:02:18.6]} 25... Rd5 {[%clk 0:00:49.1]} 26. h6 {[%clk 0:02:08.2]}
26... Qd7 {[%clk 0:00:47.8]} 27. Re3 {[%clk 0:02:01.3]} 27... Qf5 {[%clk
0:00:29.3]} 28. Qc4 {[%clk 0:02:01.2]} 28... Qh5 {[%clk 0:00:20.6]} 29. Qf4
{[%clk 0:01:40.8]} 29... Qf5 {[%clk 0:00:20.8]} 30. Qc4 {[%clk 0:01:38.9]} 30...
Qh5 {[%clk 0:00:19.9]} 31. Qf4 {[%clk 0:01:34.3]} 31... Qf5 {[%clk 0:00:19.8]}
32. Qh2 {[%clk 0:01:34]} 32... g5 {[%clk 0:00:13.3]} 33. Rde1 {[%clk 0:01:28.8]}
33... Rxd3 {[%clk 0:00:11.7]} 34. Rxd3 {[%clk 0:01:27.7]} 34... Qxd3 {[%clk
0:00:11.7]} 35. Qg3 {[%clk 0:01:28.1]} 35... Qg6 {[%clk 0:00:11.7]} 36. Qc7
{[%clk 0:01:23.1]} 36... e6 {[%clk 0:00:11.8]} 37. Ne5 {[%clk 0:01:17.4]} 37...
Qh5 {[%clk 0:00:04.8]} 38. f3 {[%clk 0:00:59.9]} 38... Rf8 {[%clk 0:00:04]} 39.
Nd7 {[%clk 0:00:55]} 39... Qxh6 {[%clk 0:00:01.9]} 40. Nxf8 {[%clk 0:00:53.6]}
40... Qxf8 {[%clk 0:00:01.6]} 41. Rd1 {[%clk 0:00:53.2]} 1-0

[Event "Early-Titled-Tuesday-Blitz-December-26-2023"]
[Site "Chess.com"]
[Date "2023.12.26"]
[Round "6"]
[White "Dewarfd"]
[Black "Romn69"]
[Result "0-1"]
[WhiteElo "2084"]
[BlackElo "2374"]
[TimeControl "180+1"]
[EndTime "9:06:13 PST"]
[Termination "Romn69 won by checkmate"]

1. b3 {[%clk 0:02:58.8]} 1... e5 {[%clk 0:02:57.3]} 2. Bb2 {[%clk 0:02:58.2]}
2... e4 {[%clk 0:02:57.6]} 3. d3 {[%clk 0:02:50.2]} 3... Nf6 {[%clk 0:02:55.6]}
4. c4 {[%clk 0:02:42.4]} 4... Nc6 {[%clk 0:02:37.9]} 5. Nc3 {[%clk 0:02:42]}
5... Bb4 {[%clk 0:02:27.6]} 6. a3 {[%clk 0:02:41.9]} 6... Bxc3+ {[%clk
0:02:26.8]} 7. Bxc3 {[%clk 0:02:42.8]} 7... Qe7 {[%clk 0:02:25.7]} 8. e3 {[%clk
0:02:27.4]} 8... O-O {[%clk 0:02:15.3]} 9. Ne2 {[%clk 0:02:13.7]} 9... d5 {[%clk
0:02:11.2]} 10. Bxf6 {[%clk 0:02:05.6]} 10... Qxf6 {[%clk 0:02:05.1]} 11. cxd5
{[%clk 0:02:05.7]} 11... exd3 {[%clk 0:02:02.4]} 12. dxc6 {[%clk 0:01:49]} 12...
dxe2 {[%clk 0:02:00.9]} 13. Bxe2 {[%clk 0:01:46]} 13... Qc3+ {[%clk 0:01:56.3]}
14. Kf1 {[%clk 0:01:43.8]} 14... Qxc6 {[%clk 0:01:56]} 15. Bf3 {[%clk
0:01:37.5]} 15... Qb6 {[%clk 0:01:50.4]} 16. b4 {[%clk 0:01:19.3]} 16... Be6
{[%clk 0:01:43.3]} 17. g3 {[%clk 0:01:13.1]} 17... Rad8 {[%clk 0:01:19.3]} 18.
Qe2 {[%clk 0:00:52.2]} 18... Bh3+ {[%clk 0:01:02]} 19. Bg2 {[%clk 0:00:50]}
19... Qe6 {[%clk 0:00:45.5]} 20. Qh5 {[%clk 0:00:37.8]} 20... Bg4 {[%clk
0:00:34.3]} 21. Qh4 {[%clk 0:00:18.3]} 21... Rd2 {[%clk 0:00:31.8]} 22. h3
{[%clk 0:00:15.6]} 22... Qf5 {[%clk 0:00:22.1]} 23. f4 {[%clk 0:00:12]} 23...
Qd3+ {[%clk 0:00:20.9]} 24. Kg1 {[%clk 0:00:10.4]} 24... Qxe3+ {[%clk
0:00:19.7]} 25. Kh2 {[%clk 0:00:09.2]} 25... Rxg2+ {[%clk 0:00:15]} 26. Kxg2
{[%clk 0:00:09.2]} 26... Bf3+ {[%clk 0:00:14.8]} 27. Kh2 {[%clk 0:00:09.5]}
27... Qf2# {[%clk 0:00:14.8]} 0-1

[Event "Early-Titled-Tuesday-Blitz-December-26-2023"]
[Site "Chess.com"]
[Date "2023.12.26"]
[Round "6"]
[White "aksuliini1"]
[Black "LeoWin2012"]
[Result "1-0"]
[WhiteElo "2470"]
[BlackElo "2226"]
[TimeControl "180+1"]
[EndTime "9:06:15 PST"]
[Termination "aksuliini1 won by checkmate"]

1. e4 {[%clk 0:03:00.1]} 1... e6 {[%clk 0:02:57.4]} 2. d4 {[%clk 0:02:59.9]}
2... d5 {[%clk 0:02:57.4]} 3. Nd2 {[%clk 0:03:00.4]} 3... c5 {[%clk 0:02:54.4]}
4. Ngf3 {[%clk 0:02:59.6]} 4... cxd4 {[%clk 0:02:47.6]} 5. exd5 {[%clk
0:02:58.9]} 5... Qxd5 {[%clk 0:02:45.6]} 6. Bc4 {[%clk 0:02:58.6]} 6... Qd7
{[%clk 0:02:43.6]} 7. O-O {[%clk 0:02:59.5]} 7... Nc6 {[%clk 0:02:43.1]} 8. Nb3
{[%clk 0:02:59.5]} 8... Nf6 {[%clk 0:02:42.3]} 9. Nbxd4 {[%clk 0:02:59.3]} 9...
Bc5 {[%clk 0:02:33.4]} 10. Nxc6 {[%clk 0:02:43.3]} 10... Qxc6 {[%clk 0:02:34.3]}
11. Ne5 {[%clk 0:02:39.4]} 11... Qc7 {[%clk 0:02:29.5]} 12. Bb5+ {[%clk
0:02:38.7]} 12... Ke7 {[%clk 0:02:18.2]} 13. Qe2 {[%clk 0:02:28.5]} 13... Bd6
{[%clk 0:02:13.2]} 14. Bf4 {[%clk 0:02:23.5]} 14... Nd5 {[%clk 0:02:06.2]} 15.
Bg3 {[%clk 0:02:20.8]} 15... a6 {[%clk 0:01:43.9]} 16. Bc4 {[%clk 0:02:13.4]}
16... Nb6 {[%clk 0:01:36]} 17. Bb3 {[%clk 0:02:07.5]} 17... Nd7 {[%clk
0:01:33.8]} 18. Nxf7 {[%clk 0:01:53.4]} 18... Bxg3 {[%clk 0:01:20.3]} 19. hxg3
{[%clk 0:01:15.6]} 19... Re8 {[%clk 0:00:45.5]} 20. Ng5 {[%clk 0:01:13.5]} 20...
Nc5 {[%clk 0:00:38]} 21. Qh5 {[%clk 0:01:08.7]} 21... Nxb3 {[%clk 0:00:24.1]}
22. Qf7+ {[%clk 0:01:06.5]} 22... Kd8 {[%clk 0:00:23.1]} 23. Rad1+ {[%clk
0:01:06]} 23... Bd7 {[%clk 0:00:20.5]} 24. cxb3 {[%clk 0:01:04.2]} 24... Kc8
{[%clk 0:00:12.3]} 25. Rc1 {[%clk 0:01:03.1]} 25... Bc6 {[%clk 0:00:11.5]} 26.
Qxe8+ {[%clk 0:00:51.7]} 26... Bxe8 {[%clk 0:00:12.4]} 27. Rxc7+ {[%clk
0:00:52.2]} 27... Kxc7 {[%clk 0:00:13.3]} 28. Nxe6+ {[%clk 0:00:53]} 28... Kd6
{[%clk 0:00:11.7]} 29. Nxg7 {[%clk 0:00:47.4]} 29... Bg6 {[%clk 0:00:11.5]} 30.
g4 {[%clk 0:00:47.9]} 30... Rc8 {[%clk 0:00:07.3]} 31. Nf5+ {[%clk 0:00:42.1]}
31... Bxf5 {[%clk 0:00:04.4]} 32. gxf5 {[%clk 0:00:43]} 32... Rc2 {[%clk
0:00:03.8]} 33. Re1 {[%clk 0:00:43.4]} 33... Rxb2 {[%clk 0:00:01.1]} 34. f6
{[%clk 0:00:43.5]} 34... Rc2 {[%clk 0:00:01.9]} 35. f7 {[%clk 0:00:43.2]} 35...
Rc8 {[%clk 0:00:02.5]} 36. Re8 {[%clk 0:00:43.5]} 36... Rc1+ {[%clk 0:00:02.4]}
37. Kh2 {[%clk 0:00:43.8]} 37... Rc5 {[%clk 0:00:03]} 38. f8=Q+ {[%clk
0:00:42.5]} 38... Kc6 {[%clk 0:00:02]} 39. Rc8+ {[%clk 0:00:42.3]} 39... Kb6
{[%clk 0:00:01.8]} 40. Qxc5# {[%clk 0:00:43.2]} 1-0

[Event "Early-Titled-Tuesday-Blitz-December-26-2023"]
[Site "Chess.com"]
[Date "2023.12.26"]
[Round "6"]
[White "GoValya"]
[Black "Statham_l3"]
[Result "0-1"]
[WhiteElo "2295"]
[BlackElo "2566"]
[TimeControl "180+1"]
[EndTime "9:06:17 PST"]
[Termination "Statham_l3 won by resignation"]

1. d4 {[%clk 0:03:00.9]} 1... e6 {[%clk 0:02:56.3]} 2. g3 {[%clk 0:02:59.5]}
2... d5 {[%clk 0:02:54.5]} 3. Bg2 {[%clk 0:02:58.2]} 3... b5 {[%clk 0:02:54.7]}
4. a4 {[%clk 0:02:52.4]} 4... b4 {[%clk 0:02:54.9]} 5. c4 {[%clk 0:02:52.3]}
5... bxc3 {[%clk 0:02:55.4]} 6. Nxc3 {[%clk 0:02:52.7]} 6... Nf6 {[%clk
0:02:55.4]} 7. Nf3 {[%clk 0:02:42.2]} 7... Bb4 {[%clk 0:02:50.4]} 8. O-O {[%clk
0:02:40.7]} 8... O-O {[%clk 0:02:50.6]} 9. Bf4 {[%clk 0:02:39.9]} 9... Bxc3
{[%clk 0:02:48.2]} 10. bxc3 {[%clk 0:02:39.7]} 10... Ba6 {[%clk 0:02:48.8]} 11.
Ne5 {[%clk 0:02:34.9]} 11... Nbd7 {[%clk 0:02:42]} 12. Nc6 {[%clk 0:02:30.1]}
12... Qe8 {[%clk 0:02:42.2]} 13. a5 {[%clk 0:02:07.1]} 13... Bb5 {[%clk
0:02:32.2]} 14. Nb4 {[%clk 0:01:54]} 14... Qc8 {[%clk 0:02:32]} 15. Re1 {[%clk
0:01:28.3]} 15... a6 {[%clk 0:02:29.3]} 16. Nd3 {[%clk 0:01:10.7]} 16... Re8
{[%clk 0:02:16.3]} 17. f3 {[%clk 0:00:51.2]} 17... c5 {[%clk 0:02:09.1]} 18. Rc1
{[%clk 0:00:39.1]} 18... Qd8 {[%clk 0:01:28]} 19. Ra1 {[%clk 0:00:30.1]} 19...
Rc8 {[%clk 0:01:24.7]} 20. e4 {[%clk 0:00:28.8]} 20... cxd4 {[%clk 0:01:19.1]}
21. cxd4 {[%clk 0:00:28.3]} 21... Rc3 {[%clk 0:01:19.7]} 22. Nb4 {[%clk
0:00:21.3]} 22... dxe4 {[%clk 0:00:59.8]} 23. fxe4 {[%clk 0:00:21.6]} 23... Rc4
{[%clk 0:00:47.7]} 24. Nc2 {[%clk 0:00:19.1]} 24... Ba4 {[%clk 0:00:40]} 25. Ra2
{[%clk 0:00:16.9]} 25... Qc8 {[%clk 0:00:39.6]} 26. Re2 {[%clk 0:00:17.2]} 26...
e5 {[%clk 0:00:38.1]} 27. Qb1 {[%clk 0:00:14.7]} 27... exf4 {[%clk 0:00:36]} 28.
gxf4 {[%clk 0:00:13.9]} 28... Nd5 {[%clk 0:00:31.3]} 29. Na3 {[%clk 0:00:11.3]}
29... Nc3 {[%clk 0:00:30]} 30. Qd3 {[%clk 0:00:09.9]} 30... Nxe2+ {[%clk
0:00:30.2]} 31. Rxe2 {[%clk 0:00:10.1]} 31... Rc1+ {[%clk 0:00:29.9]} 32. Kf2
{[%clk 0:00:10.6]} 32... Rc3 {[%clk 0:00:27.8]} 33. Qxa6 {[%clk 0:00:06.7]}
33... Qxa6 {[%clk 0:00:26.9]} 0-1